fUSD/lending_fUSD_20250607
["ID","MTS","AMOUNT","RATE_DAILY","PERIOD"]
[364873012,1749283858452,-1569.25,0.00027397,5]
[364873013,1749283858463,-480.0,0.00027397,5]
[364873014,1749283858474,-247.57441204,0.00027397,5]
[364873015,1749283858486,-480.0,0.00027397,5]
[364873016,1749283858497,-482.93172348,0.00027397,5]
[364873017,1749283858508,-429.75405372,0.00027397,5]
[364873018,1749283858519,-480.0,0.00027397,5]
[364873019,1749283858531,-480.0,0.00027397,5]
[364873020,1749283858542,-757.09,0.00027397,5]
[364873021,1749283858553,-427.63162811,0.00027397,5]
[364873022,1749283858565,-429.02331791,0.00027397,5]
[364873023,1749283858576,-3593.96,0.00027397,5]
[364873024,1749283858587,-869.93,0.00027397,5]
[364873025,1749283858599,-607.22,0.00027397,5]
[364873026,1749283858610,-480.0,0.00027397,5]
[364873027,1749283858621,-487.64773492,0.00027397,5]
[364873028,1749283858631,-1281.37,0.00027397,5]
[364873029,1749283858643,-480.0,0.00027397,5]
[364873030,1749283858654,-1143.16,0.00027397,5]
[364873031,1749283858666,-480.0,0.00027397,5]
[364873032,1749283858677,-488.13758326,0.00027397,5]
[364873033,1749283858689,-487.01657088,0.00027397,5]
[364873034,1749283858700,-630.74,0.00027397,5]
[364873035,1749283858711,-480.0,0.00027397,5]
[364873036,1749283858722,-689.06,0.00027397,5]
[364873037,1749283858733,-1387.38,0.00027397,5]
[364873038,1749283858744,-480.0,0.00027397,5]
[364873039,1749283858755,-480.0,0.00027397,5]
[364873040,1749283858766,-2996.31,0.00027397,5]
[364873041,1749283858776,-480.0,0.00027397,5]
[364873042,1749283858787,-480.0,0.00027397,5]
[364873043,1749283858798,-3176.64,0.00027397,5]
[364873044,1749283858809,-3176.64,0.00027397,5]
[364873045,1749283858820,-3176.64,0.00027397,5]
[364873046,1749283858831,-3176.64,0.00027397,5]
[364873047,1749283858842,-3176.64,0.00027397,5]
[364873048,1749283858854,-3176.64,0.00027397,5]
[364873049,1749283858864,-3176.64,0.00027397,5]
[364873050,1749283858875,-3176.64,0.00027397,5]
[364873051,1749283858887,-300.0,0.00027397,2]
[364873052,1749283858898,-3162.31,0.00027397,2]
[364873053,1749283858909,-700.0,0.00027397,2]
[364873054,1749283858920,-150.0,0.00027397,2]
[364873055,1749283858931,-159.83716111,0.00027397,5]
[364873056,1749283858941,-401.61344742,0.000274,2]
[364873057,1749283858952,-526.0,0.000274,2]
[364873058,1749283858963,-150.0,0.00027424,2]
[364873059,1749283858974,-150.0,0.00027424,2]
[364873060,1749283858984,-500.0,0.00027424,2]
[364873061,1749283858995,-200.0,0.00027452,2]
[364873062,1749283859005,-200.0,0.00027452,2]
[364873063,1749283859016,-500.0,0.00027452,2]
[364873064,1749283859027,-500.0,0.0002747,2]
[364873065,1749283859039,-500.0,0.00027479,2]
[364873066,1749283859050,-165.36091429,0.00027479,30]
[364873067,1749283859061,-165.36091429,0.00027479,30]
[364873068,1749283859071,-512.391467,0.00027479,30]
[364873069,1749283859082,-1000.0,0.00027484,2]
[364873070,1749283859092,-150.0,0.00027494,2]
[364873071,1749283859104,-151.0,0.000275,7]
[364873072,1749283859115,-269.564938,0.000275,7]
[364873073,1749283859126,-269.564938,0.000275,7]
[364873074,1749283859136,-210.73,0.000275,2]
[364873075,1749283859148,-150.0,0.00027503,2]
[364873076,1749283859159,-500.0,0.00027507,2]
[364873077,1749283859171,-296.10723875,0.00027521,17]
[364873078,1749283859182,-1000.0,0.00027531,2]
[364873079,1749283859193,-3176.64,0.00027533,5]
[364873080,1749283859205,-500.0,0.00027534,2]
[364873081,1749283859530,-99484.0,0.00027534,2]
[364873082,1749283859541,-151.0,0.00027542,7]
[364873083,1749283859553,-269.564938,0.00027542,7]
[364873084,1749283859563,-269.564938,0.00027542,7]
[364873085,1749283859572,-150.0,0.00027545,2]
[364873086,1749283859582,-150.0,0.00027545,2]
[364873087,1749283859592,-150.213,0.00027546,2]
[364873088,1749283859602,-169.166,0.00027546,2]
[364873089,1749283859612,-500.0,0.0002755,2]
[364873090,1749283859621,-2212.47,0.0002755,5]
[364873091,1749283859632,-794.82,0.0002755,2]
[364873092,1749283859642,-500.0,0.0002755,5]
[364873093,1749283859652,-500.0,0.0002756,2]
[364873094,1749283859662,-500.0,0.0002756,2]
[364873095,1749283859672,-2212.47,0.0002756,5]
[364873096,1749283859682,-2212.47,0.0002756,5]
[364873097,1749283859692,-794.82,0.0002756,2]
[364873098,1749283859701,-794.82,0.0002756,2]
[364873099,1749283859711,-500.0,0.0002756,5]
[364873100,1749283859720,-3176.64,0.0002756,5]
[364873101,1749283859730,-3176.64,0.0002756,5]
[364873102,1749283859740,-151.0,0.00027561,7]
[364873103,1749283859750,-151.0,0.00027561,7]
[364873104,1749283859759,-151.0,0.00027561,7]
[364873105,1749283859769,-151.0,0.00027561,7]
[364873106,1749283859779,-151.0,0.00027561,7]
[364873107,1749283859790,-151.0,0.00027561,7]
[364873108,1749283859799,-269.564938,0.00027561,7]
[364873109,1749283859809,-269.564938,0.00027561,7]
[364873110,1749283859818,-269.564938,0.00027561,7]
[364873111,1749283859828,-269.564938,0.00027561,7]
[364873112,1749283859837,-480.0,0.00027561,5]
[364873113,1749283859846,-484.28023511,0.00027561,5]
[364873114,1749283859857,-482.08455779,0.00027561,5]
[364873115,1749283859866,-481.11001299,0.00027561,5]
[364873116,1749283859876,-480.0,0.00027561,5]
[364873117,1749283859886,-488.07034629,0.00027561,5]
[364873118,1749283859896,-480.0,0.00027561,5]
[364873119,1749283859905,-480.0,0.00027561,2]
[364873120,1749283859915,-631.92,0.00027561,5]
[364873121,1749283859925,-474.07139219,0.00027561,5]
[364873122,1749283859935,-480.0,0.00027561,5]
[364873123,1749283859945,-497.82781857,0.00027561,5]
[364873124,1749283859954,-294.95826933,0.00027561,5]
[364873125,1749283859964,-480.0,0.00027561,5]
[364873126,1749283859974,-387.15790097,0.00027561,5]
[364873127,1749283859984,-480.0,0.00027561,5]
[364873128,1749283859994,-411.46984373,0.00027561,5]
[364873129,1749283860004,-480.0,0.00027561,5]
[364873130,1749283860015,-480.0,0.00027561,5]
[364873131,1749283860025,-480.0,0.00027561,5]
[364873132,1749283860036,-480.0,0.00027561,5]
[364873133,1749283860047,-480.0,0.00027561,5]
[364873134,1749283860057,-480.0,0.00027561,5]
[364873135,1749283860068,-480.0,0.00027561,5]
[364873136,1749283860078,-480.0,0.00027561,5]
[364873137,1749283860088,-225.7,0.00027561,5]
[364873138,1749283860098,-345.79212705,0.00027561,5]
[364873139,1749283860108,-480.0,0.00027561,5]
[364873140,1749283860118,-209.69832132,0.00027561,5]
[364873141,1749283860128,-480.0,0.00027561,5]
[364873142,1749283860138,-480.0,0.00027561,5]
[364873143,1749283860148,-480.0,0.00027561,5]
[364873144,1749283860158,-480.0,0.00027561,5]
[364873145,1749283860168,-480.0,0.00027561,5]
[364873146,1749283860177,-300.0,0.00027561,5]
[364873147,1749283860187,-480.0,0.00027561,5]
[364873148,1749283860197,-480.0,0.00027561,5]
[364873149,1749283860207,-480.0,0.00027561,5]
[364873150,1749283860217,-480.0,0.00027561,5]
[364873151,1749283860226,-480.0,0.00027561,5]
[364873152,1749283860236,-480.0,0.00027561,5]
[364873153,1749283860246,-482.96911543,0.00027561,5]
[364873154,1749283860256,-480.0,0.00027561,5]
[364873155,1749283860266,-480.0,0.00027561,5]
[364873156,1749283860275,-493.01108362,0.00027561,5]
[364873157,1749283860285,-480.0,0.00027561,5]
[364873158,1749283860294,-642.32,0.00027561,5]
[364873159,1749283860303,-480.0,0.00027561,5]
[364873160,1749283860313,-480.0,0.00027561,5]
[364873161,1749283860327,-480.0,0.00027561,5]
[364873162,1749283860337,-1416.8,0.00027561,5]
[364873163,1749283860347,-506.97042967,0.00027561,5]
[364873164,1749283860358,-480.0,0.00027561,5]
[364873165,1749283860368,-480.0,0.00027561,5]
[364873166,1749283860378,-480.0,0.00027561,5]
[364873167,1749283860388,-480.0,0.00027561,5]
[364873168,1749283860400,-480.0,0.00027561,5]
[364873169,1749283860410,-480.0,0.00027561,5]
[364873170,1749283860420,-480.0,0.00027561,5]
[364873171,1749283860430,-480.0,0.00027561,5]
[364873172,1749283860440,-480.0,0.00027561,5]
[364873173,1749283860450,-480.0,0.00027561,5]
[364873174,1749283860459,-603.55255205,0.00027561,5]
[364873175,1749283860469,-480.0,0.00027561,5]
[364873176,1749283860479,-480.0,0.00027561,5]
[364873177,1749283860488,-480.0,0.00027561,5]
[364873178,1749283860498,-480.0,0.00027561,5]
[364873179,1749283860508,-480.0,0.00027561,5]
[364873180,1749283860519,-480.0,0.00027561,5]
[364873181,1749283860528,-480.0,0.00027561,5]
[364873182,1749283860538,-480.0,0.00027561,5]
[364873183,1749283860547,-508.32764207,0.00027561,5]
[364873184,1749283860557,-480.0,0.00027561,5]
[364873185,1749283860567,-480.0,0.00027561,5]
[364873186,1749283860577,-480.0,0.00027561,5]
[364873187,1749283860586,-480.0,0.00027561,5]
[364873188,1749283860596,-722.44,0.00027561,5]
[364873189,1749283860606,-248.44864722,0.00027561,5]
[364873190,1749283860616,-480.0,0.00027561,5]
[364873191,1749283860626,-386.78537358,0.00027561,5]
[364873192,1749283860636,-658.72,0.00027561,5]
[364873193,1749283860646,-480.0,0.00027561,5]
[364873194,1749283860656,-480.0,0.00027561,5]
[364873195,1749283860665,-480.0,0.00027561,5]
[364873196,1749283860676,-480.0,0.00027561,5]
[364873197,1749283860686,-480.0,0.00027561,5]
[364873198,1749283860695,-480.0,0.00027561,5]
[364873199,1749283860705,-482.90756565,0.00027561,5]
[364873200,1749283860714,-480.0,0.00027561,5]
[364873201,1749283860724,-480.0,0.00027561,5]
[364873202,1749283860734,-563.87939294,0.00027561,5]
[364873203,1749283860743,-514.07,0.00027561,5]
[364873204,1749283860753,-480.0,0.00027561,5]
[364873205,1749283860763,-480.0,0.00027561,5]
[364873206,1749283860772,-480.0,0.00027561,5]
[364873207,1749283860782,-480.0,0.00027561,5]
[364873208,1749283860791,-480.0,0.00027561,5]
[364873209,1749283860801,-1423.16,0.00027561,5]
[364873210,1749283860811,-480.0,0.00027561,5]
[364873211,1749283860821,-499.3343995,0.00027561,5]
[364873212,1749283860831,-480.0,0.00027561,5]
[364873213,1749283860840,-480.0,0.00027561,5]
[364873214,1749283860851,-480.0,0.00027561,5]
[364873215,1749283860861,-374.25215662,0.00027561,5]
[364873216,1749283860871,-1954.69,0.00027561,5]
[364873217,1749283860881,-480.0,0.00027561,5]
[364873218,1749283860891,-516.91233471,0.00027561,5]
[364873219,1749283860901,-431.69480208,0.00027561,5]
[364873220,1749283860911,-480.0,0.00027561,5]
[364873221,1749283860920,-480.0,0.00027561,5]
[364873222,1749283860930,-538.89237035,0.00027561,5]
[364873223,1749283860940,-480.0,0.00027561,5]
[364873224,1749283860949,-624.11,0.00027561,5]
[364873225,1749283860960,-264.12610767,0.00027561,5]
[364873226,1749283860970,-480.0,0.00027561,5]
[364873227,1749283860979,-480.0,0.00027561,5]
[364873228,1749283860989,-480.0,0.00027561,5]
[364873229,1749283860999,-480.0,0.00027561,5]
[364873230,1749283861008,-2075.41541554,0.00027561,5]
[364873231,1749283861018,-483.61602611,0.00027561,5]
[364873232,1749283861033,-480.0,0.00027561,5]
[364873233,1749283861043,-482.29380278,0.00027561,5]
[364873234,1749283861053,-480.0,0.00027561,5]
[364873235,1749283861063,-480.0,0.00027561,5]
[364873236,1749283861072,-480.0,0.00027561,5]
[364873237,1749283861082,-480.0,0.00027561,5]
[364873238,1749283861091,-150.00837808,0.00027561,5]
[364873239,1749283861101,-618.47,0.00027561,5]
[364873240,1749283861111,-424.10423953,0.00027561,5]
[364873241,1749283861120,-480.0,0.00027561,5]
[364873242,1749283861130,-508.43320556,0.00027561,5]
[364873243,1749283861139,-480.0,0.00027561,5]
[364873244,1749283861149,-1137.84,0.00027561,5]
[364873245,1749283861158,-480.0,0.00027561,5]
[364873246,1749283861168,-542.89405349,0.00027561,5]
[364873247,1749283861177,-480.0,0.00027561,5]
[364873248,1749283861187,-480.0,0.00027561,5]
[364873249,1749283861196,-1163.74,0.00027561,5]
[364873250,1749283861205,-480.0,0.00027561,5]
[364873251,1749283861215,-480.0,0.00027561,5]
[364873252,1749283861225,-480.0,0.00027561,5]
[364873253,1749283861234,-480.0,0.00027561,5]
[364873254,1749283861244,-807.84,0.00027561,5]
[364873255,1749283861253,-1323.94,0.00027561,5]
[364873256,1749283861262,-484.06509942,0.00027561,5]
[364873257,1749283861272,-480.0,0.00027561,5]
[364873258,1749283861282,-480.0,0.00027561,5]
[364873259,1749283861291,-480.0,0.00027561,5]
[364873260,1749283861300,-480.0,0.00027561,5]
[364873261,1749283861310,-480.0,0.00027561,5]
[364873262,1749283861323,-480.0,0.00027561,5]
[364873263,1749283861332,-480.0,0.00027561,5]
[364873264,1749283861342,-487.76254616,0.00027561,5]
[364873265,1749283861352,-480.0,0.00027561,5]
[364873266,1749283861361,-722.49,0.00027561,5]
[364873267,1749283861371,-432.54508676,0.00027561,5]
[364873268,1749283861379,-480.0,0.00027561,5]
[364873269,1749283861389,-480.0,0.00027561,5]
[364873270,1749283861400,-480.0,0.00027561,5]
[364873271,1749283861410,-480.0,0.00027561,5]
[364873272,1749283861421,-547.71077723,0.00027561,5]
[364873273,1749283861430,-480.0,0.00027561,5]
[364873274,1749283861440,-480.0,0.00027561,5]
[364873275,1749283861449,-480.0,0.00027561,5]
[364873276,1749283861459,-480.0,0.00027561,5]
[364873277,1749283861469,-1046.98,0.00027561,5]
[364873278,1749283861478,-480.0,0.00027561,5]
[364873279,1749283861488,-480.0,0.00027561,5]
[364873280,1749283861497,-480.0,0.00027561,5]
[364873281,1749283861506,-520.6087155,0.00027561,5]
[364873282,1749283861516,-480.0,0.00027561,5]
[364873283,1749283861525,-713.0,0.00027561,5]
[364873284,1749283861535,-548.11,0.00027561,5]
[364873285,1749283861545,-480.0,0.00027561,5]
[364873286,1749283861554,-512.76820691,0.00027561,5]
[364873287,1749283861564,-480.0,0.00027561,5]
[364873288,1749283861574,-488.36627572,0.00027561,5]
[364873289,1749283861584,-494.67842674,0.00027561,5]
[364873290,1749283861593,-329.21166625,0.00027561,5]
[364873291,1749283861603,-227.39772753,0.00027561,5]
[364873292,1749283861614,-455.59345022,0.00027561,5]
[364873293,1749283861623,-491.96750139,0.00027561,5]
[364873294,1749283861633,-480.0,0.00027561,5]
[364873295,1749283861643,-480.0,0.00027561,5]
[364873296,1749283861653,-547.00824585,0.00027561,5]
[364873297,1749283861663,-882.53,0.00027561,5]
[364873298,1749283861672,-458.5351599,0.00027561,5]
[364873299,1749283861682,-480.0,0.00027561,5]
[364873300,1749283861692,-494.43292697,0.00027561,5]
[364873301,1749283861701,-480.0,0.00027561,5]
[364873302,1749283861711,-480.0,0.00027561,5]
[364873303,1749283861721,-480.0,0.00027561,5]
[364873304,1749283861732,-480.0,0.00027561,5]
[364873305,1749283861741,-480.0,0.00027561,5]
[364873306,1749283861751,-515.92049263,0.00027561,5]
[364873307,1749283861760,-480.0,0.00027561,5]
[364873308,1749283861770,-736.64,0.00027561,5]
[364873309,1749283861779,-480.0,0.00027561,5]
[364873310,1749283861788,-480.0,0.00027561,5]
[364873311,1749283861798,-480.0,0.00027561,5]
[364873312,1749283861808,-480.0,0.00027561,5]
[364873313,1749283861817,-463.51099575,0.00027561,5]
[364873314,1749283861827,-480.0,0.00027561,5]
[364873315,1749283861836,-658.07,0.00027561,5]
[364873316,1749283861846,-490.35252368,0.00027561,5]
[364873317,1749283861856,-480.0,0.00027561,5]
[364873318,1749283861959,-676.89,0.00027561,5]
[364873319,1749283861970,-480.0,0.00027561,5]
[364873320,1749283861979,-441.59751452,0.00027561,5]
[364873321,1749283861989,-480.0,0.00027561,5]
[364873322,1749283861998,-611.81,0.00027561,5]
[364873323,1749283862008,-480.0,0.00027561,5]
[364873324,1749283862018,-480.0,0.00027561,5]
[364873325,1749283862027,-903.48,0.00027561,5]
[364873326,1749283862038,-1030.91,0.00027561,5]
[364873327,1749283862047,-545.14,0.00027561,5]
[364873328,1749283862057,-502.85533557,0.00027561,5]
[364873329,1749283862067,-480.0,0.00027561,5]
[364873330,1749283862077,-480.0,0.00027561,5]
[364873331,1749283862088,-503.30597813,0.00027561,5]
[364873332,1749283862099,-480.0,0.00027561,5]
[364873333,1749283862110,-480.0,0.00027561,5]
[364873334,1749283862119,-480.0,0.00027561,5]
[364873335,1749283862128,-480.0,0.00027561,5]
[364873336,1749283862137,-480.0,0.00027561,5]
[364873337,1749283862147,-480.0,0.00027561,5]
[364873338,1749283862158,-480.0,0.00027561,5]
[364873339,1749283862168,-1787.253615,0.00027561,5]
[364873340,1749283862177,-652.14,0.00027561,5]
[364873341,1749283862186,-480.0,0.00027561,5]
[364873342,1749283862196,-480.0,0.00027561,5]
[364873343,1749283862206,-480.0,0.00027561,5]
[364873344,1749283862216,-480.0,0.00027561,5]
[364873345,1749283862226,-1026.76,0.00027561,5]
[364873346,1749283862237,-480.0,0.00027561,5]
[364873347,1749283862247,-573.4,0.00027561,5]
[364873348,1749283862256,-873.46,0.00027561,5]
[364873349,1749283862266,-493.03550905,0.00027561,5]
[364873350,1749283862275,-480.0,0.00027561,5]
[364873351,1749283862285,-480.0,0.00027561,5]
[364873352,1749283862294,-480.0,0.00027561,5]
[364873353,1749283862304,-426.04828878,0.00027561,5]
[364873354,1749283862314,-787.2,0.00027561,5]
[364873355,1749283862328,-1212.38,0.00027561,5]
[364873356,1749283862338,-2102.121321,0.00027561,5]
[364873357,1749283862348,-480.0,0.00027561,5]
[364873358,1749283862359,-480.0,0.00027561,5]
[364873359,1749283862369,-480.0,0.00027561,5]
[364873360,1749283862378,-480.0,0.00027561,5]
[364873361,1749283862387,-480.0,0.00027561,5]
[364873362,1749283862397,-498.42145917,0.00027561,5]
[364873363,1749283862407,-480.0,0.00027561,5]
[364873364,1749283862416,-480.0,0.00027561,5]
[364873365,1749283862426,-480.0,0.00027561,5]
[364873366,1749283862435,-480.0,0.00027561,5]
[364873367,1749283862445,-466.56905724,0.00027561,5]
[364873368,1749283862455,-546.31471662,0.00027561,5]
[364873369,1749283862465,-352.61474615,0.00027561,5]
[364873370,1749283862475,-480.0,0.00027561,5]
[364873371,1749283862485,-480.0,0.00027561,5]
[364873372,1749283862494,-480.0,0.00027561,5]
[364873373,1749283862504,-1174.57,0.00027561,5]
[364873374,1749283862513,-480.0,0.00027561,5]
[364873375,1749283862522,-480.0,0.00027561,5]
[364873376,1749283862532,-480.0,0.00027561,5]
[364873377,1749283862543,-850.33,0.00027561,5]
[364873378,1749283862552,-554.27,0.00027561,5]
[364873379,1749283862562,-480.0,0.00027561,5]
[364873380,1749283862571,-480.0,0.00027561,5]
[364873381,1749283862580,-480.0,0.00027561,5]
[364873382,1749283862590,-480.0,0.00027561,5]
[364873383,1749283862599,-737.61,0.00027561,5]
[364873384,1749283862609,-494.24,0.00027561,5]
[364873385,1749283862618,-480.0,0.00027561,5]
[364873386,1749283862628,-634.26,0.00027561,5]
[364873387,1749283862638,-835.68,0.00027561,5]
[364873388,1749283862648,-436.12102471,0.00027561,5]
[364873389,1749283862657,-509.42927945,0.00027561,5]
[364873390,1749283862668,-768.49,0.00027561,5]
[364873391,1749283862678,-480.0,0.00027561,5]
[364873392,1749283862687,-480.0,0.00027561,5]
[364873393,1749283862696,-166.21486647,0.00027561,5]
[364873394,1749283862705,-480.0,0.00027561,5]
[364873395,1749283862715,-528.15,0.00027561,5]
[364873396,1749283862724,-480.0,0.00027561,5]
[364873397,1749283862734,-480.0,0.00027561,5]
[364873398,1749283862743,-1115.25,0.00027561,5]
[364873399,1749283862752,-480.0,0.00027561,5]
[364873400,1749283862762,-421.28359058,0.00027561,5]
[364873401,1749283862771,-480.0,0.00027561,5]
[364873402,1749283862781,-525.96833132,0.00027561,5]
[364873403,1749283862790,-2016.63,0.00027561,5]
[364873404,1749283862799,-480.0,0.00027561,5]
[364873405,1749283862808,-480.0,0.00027561,5]
[364873406,1749283862818,-485.39,0.00027561,5]
[364873407,1749283862827,-480.0,0.00027561,5]
[364873408,1749283862836,-480.0,0.00027561,5]
[364873409,1749283862845,-480.0,0.00027561,5]
[364873410,1749283862855,-480.0,0.00027561,5]
[364873411,1749283862865,-480.0,0.00027561,5]
[364873412,1749283862874,-428.45265322,0.00027561,5]
[364873413,1749283862883,-984.78,0.00027561,5]
[364873414,1749283862893,-480.0,0.00027561,5]
[364873415,1749283862902,-480.0,0.00027561,5]
[364873416,1749283862912,-480.0,0.00027561,5]
[364873417,1749283862921,-480.0,0.00027561,5]
[364873418,1749283862931,-480.0,0.00027561,5]
[364873419,1749283862941,-480.0,0.00027561,5]
[364873420,1749283862950,-480.0,0.00027561,5]
[364873421,1749283862960,-956.19,0.00027561,5]
[364873422,1749283862969,-480.0,0.00027561,5]
[364873423,1749283862978,-601.8,0.00027561,5]
[364873424,1749283862987,-798.33,0.00027561,5]
[364873425,1749283862996,-658.43,0.00027561,5]
[364873426,1749283863006,-480.0,0.00027561,5]
[364873427,1749283863016,-984.27,0.00027561,5]
[364873428,1749283863027,-853.62,0.00027561,5]
[364873429,1749283863038,-480.0,0.00027561,5]
[364873430,1749283863048,-480.0,0.00027561,5]
[364873431,1749283863057,-480.0,0.00027561,5]
[364873432,1749283863067,-480.0,0.00027561,5]
[364873433,1749283863077,-1719.89,0.00027561,5]
[364873434,1749283863087,-480.0,0.00027561,5]
[364873435,1749283863096,-879.54,0.00027561,5]
[364873436,1749283863106,-990.87,0.00027561,5]
[364873437,1749283863116,-407.11136607,0.00027561,5]
[364873438,1749283863125,-769.25,0.00027561,5]
[364873439,1749283863136,-480.0,0.00027561,5]
[364873440,1749283863147,-480.0,0.00027561,5]
[364873441,1749283863157,-1000.0,0.00027561,5]
[364873442,1749283863168,-609.44623584,0.00027561,5]
[364873443,1749283863178,-480.0,0.00027561,5]
[364873444,1749283863188,-480.0,0.00027561,5]
[364873445,1749283863197,-480.0,0.00027561,5]
[364873446,1749283863208,-619.63,0.00027561,5]
[364873447,1749283863218,-480.0,0.00027561,5]
[364873448,1749283863228,-336.04612261,0.00027561,5]
[364873449,1749283863237,-480.0,0.00027561,5]
[364873450,1749283863247,-964.13,0.00027561,5]
[364873451,1749283863257,-480.0,0.00027561,5]
[364873452,1749283863266,-480.0,0.00027561,5]
[364873453,1749283863275,-490.42543664,0.00027561,5]
[364873454,1749283863285,-614.65,0.00027561,5]
[364873455,1749283863294,-480.0,0.00027561,5]
[364873456,1749283863304,-480.0,0.00027561,5]
[364873457,1749283863315,-480.0,0.00027561,5]
[364873458,1749283863327,-959.52,0.00027561,5]
[364873459,1749283863338,-620.08,0.00027561,5]
[364873460,1749283863347,-480.0,0.00027561,5]
[364873461,1749283863357,-503.40460421,0.00027561,5]
[364873462,1749283863367,-480.0,0.00027561,5]
[364873463,1749283863377,-480.0,0.00027561,5]
[364873464,1749283863387,-499.44479943,0.00027561,5]
[364873465,1749283863398,-480.0,0.00027561,5]
[364873466,1749283863407,-481.61,0.00027561,5]
[364873467,1749283863417,-607.29,0.00027561,5]
[364873468,1749283863427,-1150.03,0.00027561,5]
[364873469,1749283863437,-480.0,0.00027561,5]
[364873470,1749283863448,-480.0,0.00027561,5]
[364873471,1749283863458,-647.25,0.00027561,5]
[364873472,1749283863468,-1086.55,0.00027561,5]
[364873473,1749283863478,-491.83914908,0.00027561,5]
[364873474,1749283863488,-480.0,0.00027561,5]
[364873475,1749283863498,-480.0,0.00027561,5]
[364873476,1749283863508,-1473.87,0.00027561,5]
[364873477,1749283863518,-480.0,0.00027561,5]
[364873478,1749283863529,-480.0,0.00027561,5]
[364873479,1749283863539,-7690.81,0.00027561,5]
[364873480,1749283863549,-480.0,0.00027561,5]
[364873481,1749283863559,-480.0,0.00027561,5]
[364873482,1749283863569,-480.0,0.00027561,2]
[364873483,1749283863579,-480.0,0.00027561,5]
[364873484,1749283863589,-480.0,0.00027561,5]
[364873485,1749283863599,-480.0,0.00027561,5]
[364873486,1749283863610,-480.0,0.00027561,5]
[364873487,1749283863620,-1206.45,0.00027561,5]
[364873488,1749283863630,-480.0,0.00027561,5]
[364873489,1749283863640,-480.0,0.00027561,5]
[364873490,1749283863650,-480.0,0.00027561,5]
[364873491,1749283863659,-480.0,0.00027561,5]
[364873492,1749283863669,-480.0,0.00027561,5]
[364873493,1749283863678,-594.14,0.00027561,5]
[364873494,1749283863689,-480.0,0.00027561,5]
[364873495,1749283863699,-656.54,0.00027561,5]
[364873496,1749283863708,-665.13,0.00027561,5]
[364873497,1749283863719,-480.0,0.00027561,5]
[364873498,1749283863729,-509.24,0.00027561,5]
[364873499,1749283863738,-480.0,0.00027561,5]
[364873500,1749283863747,-480.0,0.00027561,5]
[364873501,1749283863758,-480.0,0.00027561,5]
[364873502,1749283863767,-867.98,0.00027561,5]
[364873503,1749283863776,-835.03,0.00027561,5]
[364873504,1749283863786,-1091.22,0.00027561,5]
[364873505,1749283863795,-480.0,0.00027561,5]
[364873506,1749283863805,-788.44,0.00027561,5]
[364873507,1749283863815,-480.0,0.00027561,5]
[364873508,1749283863825,-480.0,0.00027561,5]
[364873509,1749283863834,-480.0,0.00027561,5]
[364873510,1749283863843,-2181.17,0.00027561,5]
[364873511,1749283863853,-480.0,0.00027561,5]